[Event "6e festival d'échecs d'Allauch"]
[Site "Allauch, France"]
[Date "2024.08.28"]
[Round "5.2"]
[White "Petrosyan, Armen"]
[Black "Philippe, Guillaume"]
[Result "0-1"]
[TimeControl "1 h 30 min (+30s/coup)"]
[WhiteElo "2344"]
[BlackElo "2356"]

1. e4 {[%clk 01:30:49]} c5 {[%clk 01:30:55]} {[%emt 00:00:03]} 2. Nf3 {[%clk
01:31:12]} {[%emt 00:00:06]} e6 {[%clk 01:31:22]} {[%emt 00:00:05]} 3. d4
{[%clk 01:31:37]} {[%emt 00:00:05]} cxd4 {[%clk 01:31:48]} {[%emt 00:00:04]} 4.
Nxd4 {[%clk 01:32:03]} {[%emt 00:00:05]} Nc6 {[%clk 01:32:13]} {[%emt
00:00:03]} 5. Nc3 {[%clk 01:32:24]} {[%emt 00:00:11]} d6 {[%clk 01:32:23]}
{[%emt 00:00:19]} 6. Be3 {[%clk 01:30:34]} {[%emt 00:02:20]} Nf6 {[%clk
01:32:13]} {[%emt 00:00:39]} 7. Bd3 {[%clk 01:30:22]} {[%emt 00:00:42]} Be7
{[%emt 00:00:46]} 8. O-O {[%clk 01:30:34]} O-O {[%clk 01:31:57]} {[%emt
00:00:48]} 9. h3 {[%clk 01:15:26]} {[%emt 00:15:38]} a6 {[%clk 01:20:18]}
{[%emt 00:12:08]} 10. a4 {[%clk 01:12:55]} {[%emt 00:03:01]} Qc7 {[%clk
01:20:11]} {[%emt 00:00:37]} 11. Nb3 {[%clk 01:12:29]} {[%emt 00:00:56]} b6
{[%clk 01:19:20]} {[%emt 00:01:20]} 12. f4 {[%clk 01:12:30]} {[%emt 00:00:30]}
Bb7 {[%clk 01:18:51]} {[%emt 00:00:58]} 13. Qe2 {[%clk 01:10:36]} {[%emt
00:02:24]} Rfe8 {[%clk 01:15:01]} {[%emt 00:04:20]} 14. Qf2 {[%clk 01:05:57]}
{[%emt 00:05:10]} Nd7 {[%clk 01:15:12]} {[%emt 00:00:17]} 15. f5 {[%clk
00:53:43]} {[%emt 00:12:45]} Nce5 {[%clk 01:13:39]} {[%emt 00:02:03]} 16. Qg3
{[%clk 00:53:03]} {[%emt 00:01:10]} Kh8 {[%clk 01:12:16]} {[%emt 00:01:50]} 17.
Rad1 {[%clk 00:50:34]} {[%emt 00:03:01]} Nc5 {[%clk 01:05:55]} {[%emt
00:06:49]} 18. Nd4 {[%clk 00:37:47]} {[%emt 00:13:18]} Bf6 {[%clk 01:03:34]}
{[%emt 00:02:51]} 19. fxe6 {[%clk 00:37:12]} {[%emt 00:01:06]} fxe6 {[%clk
01:03:43]} {[%emt 00:00:19]} 20. Nde2 {[%clk 00:37:07]} {[%emt 00:00:36]} Qe7
{[%clk 01:02:44]} {[%emt 00:01:29]} 21. Nf4 {[%clk 00:32:59]} {[%emt 00:04:38]}
Bh4 {[%clk 00:59:20]} {[%emt 00:03:54]} 22. Qh2 {[%clk 00:33:24]} {[%emt
00:00:05]} Rac8 {[%clk 00:59:23]} {[%emt 00:00:27]} 23. g3 {[%clk 00:29:24]}
{[%emt 00:04:30]} Bf6 {[%clk 00:59:34]} {[%emt 00:00:17]} 24. Nh5 {[%clk
00:28:46]} {[%emt 00:01:09]} Bg5 {[%clk 00:59:55]} {[%emt 00:00:09]} 25. Qd2
{[%clk 00:28:57]} {[%emt 00:00:19]} Bxe3+ {[%clk 00:59:19]} {[%emt 00:01:06]}
26. Qxe3 {[%clk 00:29:23]} {[%emt 00:00:04]} Kg8 {[%clk 00:55:25]} {[%emt
00:04:24]} 27. Be2 {[%clk 00:27:14]} {[%emt 00:02:40]} Rf8 {[%clk 00:54:59]}
{[%emt 00:00:55]} 28. h4 {[%clk 00:26:34]} {[%emt 00:01:11]} Rxf1+ {[%clk
00:54:42]} {[%emt 00:00:47]} 29. Rxf1 {[%clk 00:26:52]} {[%emt 00:00:13]} Rf8
{[%clk 00:54:40]} {[%emt 00:00:31]} 30. Rxf8+ {[%clk 00:22:31]} {[%emt
00:04:50]} Kxf8 {[%clk 00:53:24]} {[%emt 00:01:45]} 31. Qd4 {[%clk 00:17:47]}
{[%emt 00:05:15]} Nc6 {[%clk 00:51:50]} {[%emt 00:02:02]} 32. Qd2 {[%clk
00:16:15]} {[%emt 00:02:04]} Kg8 {[%clk 00:50:48]} {[%emt 00:01:31]} 33. Qe3
{[%clk 00:14:06]} {[%emt 00:02:39]} g6 {[%clk 00:48:59]} {[%emt 00:02:19]} 34.
Nf4 {[%clk 00:14:28]} {[%emt 00:00:08]} Qf6 {[%clk 00:49:18]} {[%emt 00:00:08]}
35. Bc4 {[%clk 00:12:47]} {[%emt 00:02:13]} Kg7 {[%clk 00:46:58]} {[%emt
00:02:50]} 36. Bxe6 {[%clk 00:04:10]} {[%emt 00:09:07]} Nxe6 {[%clk 00:46:25]}
{[%emt 00:01:02]} 37. Ncd5 {[%clk 00:04:36]} {[%emt 00:00:04]} Qe5 {[%clk
00:44:46]} {[%emt 00:02:09]} 38. Nxe6+ {[%clk 00:04:58]} {[%emt 00:00:09]} Qxe6
{[%clk 00:44:07]} {[%emt 00:01:08]} 39. Qxb6 {[%clk 00:05:24]} {[%emt
00:00:05]} Qd7 {[%clk 00:30:27]} {[%emt 00:14:07]} 40. Nc7 {[%clk 00:05:41]}
{[%emt 00:00:15]} Bc8 {[%clk 00:30:53]} {[%emt 00:00:04]} 41. Nxa6 {[%clk
00:04:18]} {[%emt 00:01:52]} Ne5 {[%clk 00:31:19]} {[%emt 00:00:05]} 42. Nb4
{[%clk 00:04:18]} {[%emt 00:00:30]} Qg4 {[%clk 00:30:50]} {[%emt 00:00:59]} 43.
Qa7+ {[%clk 00:00:39]} {[%emt 00:04:09]} Bd7 {[%clk 00:30:20]} {[%emt
00:00:59]} 44. Nd3 {[%clk 00:00:37]} {[%emt 00:00:32]} Qd1+ {[%clk 00:29:19]}
{[%emt 00:01:31]} 45. Kg2 {[%clk 00:00:58]} {[%emt 00:00:10]} Qxc2+ {[%clk
00:29:39]} {[%emt 00:00:09]} 46. Nf2 {[%clk 00:01:25]} {[%emt 00:00:04]} Qxa4
{[%clk 00:29:54]} {[%emt 00:00:15]} 47. Qb6 {[%clk 00:01:27]} {[%emt 00:00:28]}
Qc6 {[%clk 00:30:13]} {[%emt 00:00:12]} 48. Qd8 {[%clk 00:01:49]} {[%emt
00:00:08]} Be6 {[%clk 00:28:37]} {[%emt 00:02:03]} 49. Qe7+ {[%clk 00:01:43]}
{[%emt 00:00:39]} Bf7 {[%clk 00:28:53]} {[%emt 00:00:12]} 50. g4 {[%clk
00:02:04]} {[%emt 00:00:11]} Qd7 {[%clk 00:27:10]} {[%emt 00:02:13]} 51. Qg5
{[%clk 00:02:28]} {[%emt 00:00:06]} Be6 {[%clk 00:25:08]} {[%emt 00:02:32]} 52.
Kg3 {[%clk 00:02:48]} {[%emt 00:00:10]} Qb7 {[%clk 00:21:45]} {[%emt 00:03:50]}
53. Kg2 {[%clk 00:02:25]} {[%emt 00:00:55]} Bxg4 {[%clk 00:19:37]} {[%emt
00:02:38]} 0-1

[Event "6e festival d'échecs d'Allauch"]
[Site "Allauch, France"]
[Date "2024.08.28"]
[Round "5.3"]
[White "Ben Amar, Yanis"]
[Black "Derige Kane, Yan"]
[Result "0-1"]
[TimeControl "1 h 30 min (+30s/coup)"]
[WhiteElo "1980"]
[BlackElo "2141"]

1. e4 {[%clk 01:30:58]} c5 {[%clk 01:26:47]} {[%emt 00:04:14]} 2. Nf3 {[%clk
01:31:21]} {[%emt 00:00:06]} e6 {[%clk 01:27:13]} {[%emt 00:00:04]} 3. d4
{[%clk 01:31:41]} {[%emt 00:00:10]} cxd4 {[%clk 01:27:38]} {[%emt 00:00:05]} 4.
Nxd4 {[%clk 01:32:07]} {[%emt 00:00:04]} Nf6 {[%clk 01:28:03]} {[%emt
00:00:05]} 5. Nc3 {[%clk 01:32:28]} {[%emt 00:00:08]} Nc6 {[%clk 01:28:28]}
{[%emt 00:00:05]} 6. Be3 {[%clk 01:32:37]} {[%emt 00:00:20]} Bb4 {[%clk
01:28:51]} {[%emt 00:00:08]} 7. f3 {[%clk 01:32:53]} {[%emt 00:00:14]} d5
{[%clk 01:29:09]} {[%emt 00:00:13]} 8. Nxc6 {[%clk 01:30:53]} {[%emt 00:02:30]}
bxc6 {[%clk 01:29:26]} {[%emt 00:00:13]} 9. Qd3 {[%clk 01:15:31]} {[%emt
00:15:53]} O-O {[%clk 01:26:46]} {[%emt 00:03:09]} 10. O-O-O {[%clk 01:10:05]}
{[%emt 00:05:56]} a5 {[%clk 01:26:01]} {[%emt 00:01:14]} 11. a3 {[%clk
01:09:59]} {[%emt 00:00:38]} Be7 {[%clk 01:25:05]} {[%emt 00:01:25]} 12. Qd2
{[%clk 01:05:15]} {[%emt 00:05:15]} Qc7 {[%emt 00:04:00]} 13. g4 {[%clk
01:02:20]} Rd8 {[%clk 01:16:23]} {[%emt 00:09:06]} 14. Qf2 {[%clk 01:00:36]}
{[%emt 00:02:14]} Rb8 {[%clk 01:15:31]} {[%emt 00:01:22]} 15. Be2 {[%clk
00:54:16]} {[%emt 00:06:50]} Nd7 {[%clk 01:12:59]} {[%emt 00:03:01]} 16. h4
{[%clk 00:48:26]} {[%emt 00:06:21]} Bf6 {[%clk 01:06:13]} {[%emt 00:07:16]} 17.
Na4 {[%clk 00:45:46]} {[%emt 00:03:10]} Qb7 {[%clk 01:02:01]} {[%emt 00:04:41]}
18. b3 {[%clk 00:37:23]} {[%emt 00:08:54]} Be7 {[%clk 00:59:33]} {[%emt
00:02:58]} 19. Kb2 {[%clk 00:29:42]} {[%emt 00:08:12]} Qc7 {[%clk 00:59:22]}
{[%emt 00:00:41]} 20. g5 {[%clk 00:26:52]} {[%emt 00:03:19]} Qe5+ {[%clk
00:56:13]} {[%emt 00:03:38]} 21. Bd4 {[%clk 00:25:26]} {[%emt 00:01:57]} Qd6
{[%clk 00:56:31]} {[%emt 00:00:11]} 22. Ra1 {[%clk 00:25:21]} {[%emt 00:00:36]}
c5 {[%clk 00:55:50]} {[%emt 00:01:11]} 23. Be3 {[%clk 00:24:43]} {[%emt
00:01:08]} Qc6 {[%clk 00:39:35]} {[%emt 00:16:45]} 24. exd5 {[%clk 00:16:52]}
{[%emt 00:08:22]} exd5 {[%clk 00:34:26]} {[%emt 00:05:39]} 25. Ka2 {[%clk
00:16:00]} {[%emt 00:01:22]} c4 {[%clk 00:33:25]} {[%emt 00:01:29]} 26. Bd1
{[%clk 00:15:45]} {[%emt 00:00:45]} Qd6 {[%clk 00:28:40]} {[%emt 00:05:16]} 27.
Kb1 {[%clk 00:15:00]} {[%emt 00:01:15]} Ba6 {[%clk 00:28:33]} {[%emt 00:00:38]}
28. Nb2 {[%clk 00:14:26]} {[%emt 00:01:04]} Rdc8 {[%clk 00:28:27]} {[%emt
00:00:36]} 29. Qh2 {[%clk 00:13:44]} {[%emt 00:01:12]} Qc6 {[%clk 00:28:14]}
{[%emt 00:00:43]} 30. Re1 {[%clk 00:12:45]} {[%emt 00:01:29]} Nc5 {[%clk
00:26:24]} {[%emt 00:02:20]} 31. Bxc5 {[%clk 00:11:48]} {[%emt 00:01:28]} Bxc5
{[%clk 00:26:47]} {[%emt 00:00:07]} 32. h5 {[%clk 00:09:34]} {[%emt 00:02:44]}
Bd4 {[%clk 00:25:52]} {[%emt 00:01:24]} 33. Re7 {[%clk 00:09:18]} {[%emt
00:00:44]} cxb3 {[%clk 00:22:11]} {[%emt 00:04:14]} 34. cxb3 {[%clk 00:09:14]}
{[%emt 00:00:34]} Qc1+ {[%clk 00:21:02]} {[%emt 00:01:39]} 35. Ka2 {[%clk
00:09:42]} {[%emt 00:00:02]} Qxg5 {[%clk 00:21:21]} {[%emt 00:00:11]} 36. Re1
{[%clk 00:08:42]} {[%emt 00:01:29]} Qf6 {[%clk 00:15:56]} {[%emt 00:05:55]} 37.
Rb1 {[%clk 00:07:14]} {[%emt 00:01:59]} Bc3 {[%clk 00:15:15]} {[%emt 00:01:11]}
38. Re3 {[%clk 00:06:51]} {[%emt 00:00:53]} d4 {[%clk 00:15:14]} {[%emt
00:00:32]} 39. Re4 {[%clk 00:05:01]} {[%emt 00:02:20]} d3 {[%clk 00:15:32]}
{[%emt 00:00:11]} 40. Nc4 {[%clk 00:03:56]} {[%emt 00:01:35]} Bxc4 {[%clk
00:04:06]} {[%emt 00:11:56]} 41. Rxc4 {[%clk 00:03:45]} {[%emt 00:00:42]} Qd8
{[%clk 00:04:33]} {[%emt 00:00:04]} 42. Rc1 {[%clk 00:02:31]} {[%emt 00:01:44]}
Rxc4 {[%clk 00:04:29]} {[%emt 00:00:33]} 43. bxc4 {[%clk 00:02:56]} {[%emt
00:00:05]} Rb2+ {[%clk 00:02:42]} {[%emt 00:02:15]} 44. Qxb2 {[%clk 00:03:24]}
{[%emt 00:00:02]} Bxb2 {[%clk 00:03:05]} {[%emt 00:00:07]} 45. Kxb2 {[%clk
00:03:46]} {[%emt 00:00:08]} Qd4+ {[%clk 00:03:31]} {[%emt 00:00:03]} 46. Kb3
{[%clk 00:03:59]} {[%emt 00:00:18]} Qe3 {[%clk 00:01:17]} {[%emt 00:02:45]} 47.
Kb2 {[%clk 00:04:00]} {[%emt 00:00:28]} Qd4+ {[%clk 00:00:56]} {[%emt
00:00:50]} 48. Rc3 {[%clk 00:03:29]} {[%emt 00:01:01]} Qf2+ {[%clk 00:01:15]}
{[%emt 00:00:11]} 49. Kc1 {[%clk 00:03:35]} {[%emt 00:00:25]} Qa2 {[%clk
00:00:59]} {[%emt 00:00:46]} 50. Bb3 {[%clk 00:02:55]} {[%emt 00:01:11]} d2+
{[%clk 00:00:42]} {[%emt 00:00:46]} 51. Kd1 {[%clk 00:03:05]} {[%emt 00:00:20]}
Qb2 {[%clk 00:01:05]} {[%emt 00:00:06]} 52. Rd3 {[%clk 00:02:07]} {[%emt
00:01:28]} Qc1+ {[%clk 00:01:26]} {[%emt 00:00:10]} 53. Ke2 {[%clk 00:02:36]}
0-1

[Event "6e festival d'échecs d'Allauch"]
[Site "Allauch, France"]
[Date "2024.08.28"]
[Round "5.4"]
[White "Madi, Mohammed"]
[Black "Chaumet, Etienne"]
[Result "1/2-1/2"]
[TimeControl "1 h 30 min (+30s/coup)"]
[WhiteElo "1922"]
[BlackElo "2077"]

1. e4 {[%clk 01:30:58]} c5 {[%clk 01:30:54]} {[%emt 00:00:07]} 2. Nf3 {[%clk
01:31:24]} {[%emt 00:00:05]} d6 {[%clk 01:31:18]} {[%emt 00:00:07]} 3. d4
{[%clk 01:31:48]} {[%emt 00:00:04]} cxd4 {[%clk 01:31:42]} {[%emt 00:00:06]} 4.
Nxd4 {[%clk 01:32:12]} {[%emt 00:00:07]} Nf6 {[%clk 01:32:07]} {[%emt
00:00:05]} 5. Nc3 {[%clk 01:32:34]} {[%emt 00:00:08]} a6 {[%clk 01:32:33]}
{[%emt 00:00:05]} 6. f3 {[%clk 01:32:47]} {[%emt 00:00:16]} e5 {[%clk
01:32:52]} {[%emt 00:00:10]} 7. Nb3 {[%clk 01:33:11]} {[%emt 00:00:06]} Be6
{[%clk 01:33:14]} {[%emt 00:00:08]} 8. Be3 {[%clk 01:33:36]} {[%emt 00:00:06]}
Be7 {[%clk 01:33:37]} {[%emt 00:00:07]} 9. Qd2 {[%clk 01:34:00]} {[%emt
00:00:06]} O-O {[%clk 01:33:59]} {[%emt 00:00:08]} 10. O-O-O {[%clk 01:34:23]}
{[%emt 00:00:07]} Nbd7 {[%clk 01:34:22]} {[%emt 00:00:06]} 11. g4 {[%clk
01:34:48]} {[%emt 00:00:06]} b5 {[%clk 01:34:43]} {[%emt 00:00:09]} 12. g5
{[%clk 01:35:13]} {[%emt 00:00:05]} b4 {[%clk 01:35:08]} {[%emt 00:00:06]} 13.
Ne2 {[%clk 01:35:15]} {[%emt 00:00:28]} Nh5 {[%clk 01:34:47]} {[%emt 00:00:51]}
14. Ng3 {[%clk 01:33:00]} {[%emt 00:02:44]} a5 {[%clk 01:30:33]} {[%emt
00:04:44]} 15. Nf5 {[%clk 01:21:16]} {[%emt 00:12:15]} a4 {[%clk 01:19:55]}
{[%emt 00:11:08]} 16. Nxe7+ {[%clk 01:19:51]} {[%emt 00:01:55]} Qxe7 {[%clk
01:20:23]} {[%emt 00:00:02]} 17. Na1 {[%clk 01:20:00]} {[%emt 00:00:21]} d5
{[%clk 00:59:05]} {[%emt 00:21:48]} 18. exd5 {[%clk 01:16:16]} {[%emt
00:04:14]} Bf5 {[%clk 00:59:28]} {[%emt 00:00:07]} 19. Bd3 {[%clk 01:10:41]}
{[%emt 00:06:05]} Bxd3 {[%clk 00:59:21]} {[%emt 00:00:38]} 20. Qxd3 {[%clk
01:11:03]} {[%emt 00:00:08]} Qd6 {[%clk 00:57:25]} {[%emt 00:02:26]} 21. Kb1
{[%clk 01:05:40]} {[%emt 00:05:53]} Rfc8 {[%clk 00:55:08]} {[%emt 00:02:47]} 22.
a3 {[%clk 00:53:46]} {[%emt 00:12:24]} Rab8 {[%clk 00:50:44]} {[%emt 00:04:51]}
23. Ka2 {[%clk 00:51:32]} {[%emt 00:02:46]} Nb6 {[%clk 00:46:10]} {[%emt
00:05:05]} 24. Bxb6 {[%clk 00:47:31]} {[%emt 00:04:31]} Rxb6 {[%clk 00:45:23]}
{[%emt 00:01:18]} 25. axb4 {[%clk 00:45:46]} {[%emt 00:02:14]} Qxb4 {[%clk
00:38:57]} {[%emt 00:06:56]} 26. Qa3 {[%clk 00:42:24]} {[%emt 00:03:52]} Qc4+
{[%clk 00:38:29]} {[%emt 00:00:58]} 27. Kb1 {[%clk 00:41:51]} {[%emt 00:01:03]}
Nf4 {[%clk 00:35:58]} {[%emt 00:03:00]} 28. d6 {[%clk 00:35:57]} {[%emt
00:06:25]} Rd8 {[%clk 00:34:38]} {[%emt 00:01:50]} 29. Rhe1 {[%clk 00:25:27]}
{[%emt 00:11:00]} Nd5 {[%clk 00:30:25]} {[%emt 00:04:42]} 30. Rd2 {[%clk
00:18:07]} {[%emt 00:07:50]} Nb4 {[%clk 00:28:40]} {[%emt 00:02:15]} 31. Red1
{[%clk 00:15:51]} {[%emt 00:02:46]} Rbxd6 {[%clk 00:25:42]} {[%emt 00:03:28]}
32. Rxd6 {[%clk 00:09:51]} {[%emt 00:06:30]} Rxd6 {[%clk 00:26:11]} {[%emt
00:00:02]} 33. Rc1 {[%clk 00:09:40]} {[%emt 00:00:41]} Qb5 {[%clk 00:21:19]}
{[%emt 00:05:22]} 34. c4 {[%clk 00:07:26]} {[%emt 00:02:44]} Qa5 {[%clk
00:20:27]} {[%emt 00:01:21]} 35. Nb3 {[%clk 00:06:04]} {[%emt 00:01:53]} Qd8
{[%clk 00:18:18]} {[%emt 00:02:38]} 36. Qxb4 {[%clk 00:05:14]} {[%emt
00:01:21]} axb3 {[%clk 00:18:33]} {[%emt 00:00:15]} 37. Qxb3 {[%clk 00:05:10]}
{[%emt 00:00:34]} Rd3 {[%clk 00:17:24]} {[%emt 00:01:38]} 38. Qb5 {[%clk
00:05:04]} {[%emt 00:00:37]} Qc8 {[%clk 00:16:24]} {[%emt 00:01:29]} 39. c5
{[%clk 00:04:33]} {[%emt 00:01:01]} Rd5 {[%clk 00:16:25]} {[%emt 00:00:30]} 40.
Qb6 {[%clk 00:04:13]} {[%emt 00:00:49]} Rd7 {[%clk 00:15:14]} {[%emt 00:01:41]}
41. c6 {[%clk 00:03:34]} {[%emt 00:01:09]} Rc7 {[%clk 00:15:39]} {[%emt
00:00:04]} 42. Rd1 {[%clk 00:03:19]} {[%emt 00:00:45]} g6 {[%clk 00:16:02]}
{[%emt 00:00:07]} 43. b4 {[%clk 00:02:26]} {[%emt 00:01:24]} Rxc6 {[%clk
00:13:02]} {[%emt 00:03:30]} 44. Rd8+ {[%clk 00:02:13]} {[%emt 00:00:43]} Kg7
{[%clk 00:13:27]} {[%emt 00:00:05]} 45. Rxc8 {[%clk 00:02:26]} {[%emt
00:00:17]} Rxb6 {[%clk 00:13:56]} {[%emt 00:00:01]} 46. Rc4 {[%clk 00:02:49]}
{[%emt 00:00:08]} f6 {[%clk 00:09:37]} {[%emt 00:04:50]} 47. h4 {[%clk
00:03:01]} {[%emt 00:00:17]} h6 {[%clk 00:09:11]} {[%emt 00:00:55]} 48. Kc2
{[%clk 00:01:34]} {[%emt 00:01:57]} fxg5 {[%clk 00:08:53]} {[%emt 00:00:47]} 49.
hxg5 {[%clk 00:01:57]} {[%emt 00:00:08]} hxg5 {[%clk 00:07:55]} {[%emt
00:01:28]} 50. Kb3 {[%clk 00:00:34]} {[%emt 00:01:53]} Rf6 {[%clk 00:06:22]}
{[%emt 00:02:03]} 51. Rc3 {[%clk 00:00:53]} {[%emt 00:00:11]} e4 {[%clk
00:06:45]} {[%emt 00:00:06]} 52. fxe4 {[%clk 00:01:05]} {[%emt 00:00:18]} g4
{[%clk 00:07:07]} {[%emt 00:00:09]} 53. b5 {[%clk 00:00:33]} {[%emt 00:01:03]}
Rf3 {[%clk 00:07:25]} {[%emt 00:00:11]} 54. b6 {[%clk 00:00:48]} {[%emt
00:00:15]} Rxc3+ {[%clk 00:07:42]} {[%emt 00:00:13]} 55. Kxc3 {[%clk 00:01:13]}
{[%emt 00:00:06]} g3 {[%clk 00:08:07]} {[%emt 00:00:04]} 56. b7 {[%clk
00:01:36]} {[%emt 00:00:07]} g2 {[%clk 00:08:32]} {[%emt 00:00:05]} 57. b8=Q
{[%clk 00:01:27]} 1/2-1/2

[Event "6e festival d'échecs d'Allauch"]
[Site "Allauch, France"]
[Date "2024.08.28"]
[Round "5.5"]
[White "Sembel Rudelle, Gael"]
[Black "Siguret, William"]
[Result "1-0"]
[TimeControl "1 h 30 min (+30s/coup)"]
[WhiteElo "1624"]
[BlackElo "1671"]

1. e4 {[%clk 01:30:57]} {[%emt 00:00:03]} d5 {[%clk 01:30:53]} {[%emt
00:00:08]} 2. exd5 {[%clk 01:31:21]} {[%emt 00:00:06]} Qxd5 {[%clk 01:31:18]}
{[%emt 00:00:04]} 3. Nc3 {[%clk 01:31:47]} {[%emt 00:00:04]} Qd6 {[%clk
01:31:45]} {[%emt 00:00:03]} 4. d4 {[%clk 01:32:13]} {[%emt 00:00:07]} Nf6
{[%clk 01:31:59]} {[%emt 00:00:15]} 5. Nf3 {[%clk 01:32:39]} {[%emt 00:00:04]}
c6 {[%clk 01:31:49]} {[%emt 00:00:40]} 6. Bc4 {[%clk 01:32:40]} {[%emt
00:00:28]} Bg4 {[%clk 01:29:52]} {[%emt 00:02:27]} 7. Be3 {[%clk 01:32:25]}
{[%emt 00:00:45]} e6 {[%clk 01:29:49]} {[%emt 00:00:33]} 8. h3 {[%clk
01:31:47]} {[%emt 00:01:08]} Bh5 {[%clk 01:27:19]} {[%emt 00:02:58]} 9. g4
{[%clk 01:31:58]} {[%emt 00:00:20]} Bg6 {[%clk 01:26:33]} {[%emt 00:01:16]} 10.
Ne5 {[%clk 01:31:16]} {[%emt 00:01:13]} Nbd7 {[%clk 01:26:08]} {[%emt
00:00:54]} 11. Nxg6 {[%clk 01:29:29]} {[%emt 00:02:17]} hxg6 {[%clk 01:26:18]}
{[%emt 00:00:21]} 12. g5 {[%clk 01:29:20]} {[%emt 00:00:38]} Nd5 {[%clk
01:22:49]} {[%emt 00:03:59]} 13. Nxd5 {[%clk 01:28:59]} {[%emt 00:00:50]} exd5
{[%emt 00:02:10]} 14. Bd3 {[%clk 01:29:07]} {[%emt 00:00:18]} Qe6 {[%clk
01:19:10]} {[%emt 00:02:34]} 15. Qf3 {[%clk 01:28:13]} {[%emt 00:01:25]} Be7
{[%clk 01:18:09]} {[%emt 00:01:28]} 16. O-O-O {[%clk 01:28:18]} {[%emt
00:00:27]} O-O-O {[%clk 01:18:20]} {[%emt 00:00:20]} 17. Rde1 {[%clk 01:27:51]}
{[%emt 00:00:56]} f5 {[%clk 01:11:57]} {[%emt 00:06:53]} 18. Bf4 {[%clk
01:27:19]} {[%emt 00:01:02]} Qf7 {[%clk 01:09:48]} {[%emt 00:02:39]} 19. c3
{[%clk 01:21:19]} {[%emt 00:06:31]} a5 {[%clk 01:08:55]} {[%emt 00:01:23]} 20.
Qd1 {[%clk 01:21:25]} {[%emt 00:00:23]} c5 {[%clk 00:56:48]} {[%emt 00:12:37]}
21. Qa4 {[%clk 01:20:03]} {[%emt 00:01:52]} Rh4 {[%clk 00:53:06]} {[%emt
00:04:13]} 22. Qc6+ {[%clk 01:20:06]} {[%emt 00:00:26]} bxc6 {[%clk 00:52:54]}
{[%emt 00:00:43]} 23. Ba6# {[%clk 01:20:35]} {[%emt 00:00:01]} 1-0

[Event "6e festival d'échecs d'Allauch"]
[Site "Allauch, France"]
[Date "2024.08.28"]
[Round "5.6"]
[White "Madi, Chahinez"]
[Black "Ghio, Maxime"]
[Result "1-0"]
[TimeControl "1 h 30 min (+30s/coup)"]
[WhiteElo "1668"]
[BlackElo "1641"]

1. e4 {[%clk 01:30:59]} c5 {[%clk 01:30:54]} {[%emt 00:00:07]} 2. Nf3 {[%clk
01:31:24]} {[%emt 00:00:05]} Nc6 {[%clk 01:31:18]} {[%emt 00:00:07]} 3. d4
{[%clk 01:31:27]} {[%emt 00:00:28]} cxd4 {[%clk 01:31:41]} {[%emt 00:00:05]} 4.
Nxd4 {[%clk 01:31:51]} {[%emt 00:00:06]} g6 {[%clk 01:32:04]} {[%emt 00:00:07]}
5. Nc3 {[%clk 01:31:25]} {[%emt 00:00:55]} Bg7 {[%clk 01:32:27]} {[%emt
00:00:07]} 6. Nf3 {[%clk 01:31:32]} {[%emt 00:00:23]} Nf6 {[%clk 01:31:04]}
{[%emt 00:01:53]} 7. Bc4 {[%clk 01:30:02]} {[%emt 00:02:00]} d6 {[%clk
01:27:27]} {[%emt 00:04:07]} 8. O-O {[%clk 01:24:35]} {[%emt 00:05:58]} O-O
{[%clk 01:27:15]} {[%emt 00:00:42]} 9. h3 {[%clk 01:24:05]} {[%emt 00:01:00]}
Bd7 {[%clk 01:21:31]} {[%emt 00:06:13]} 10. a4 {[%clk 01:19:41]} {[%emt
00:04:54]} Na5 {[%clk 01:14:39]} {[%emt 00:07:20]} 11. Ba2 {[%clk 01:16:09]}
{[%emt 00:04:04]} b6 {[%clk 01:06:01]} {[%emt 00:09:08]} 12. Re1 {[%clk
01:08:32]} {[%emt 00:08:07]} Qe8 {[%clk 00:44:22]} {[%emt 00:22:09]} 13. Bg5
{[%clk 00:56:17]} {[%emt 00:12:46]} Nc6 {[%clk 00:32:53]} {[%emt 00:11:58]} 14.
Bxf6 {[%clk 00:52:43]} {[%emt 00:04:04]} Bxf6 {[%clk 00:27:04]} {[%emt
00:06:20]} 15. Nd5 {[%clk 00:52:07]} {[%emt 00:01:06]} Bxb2 {[%clk 00:26:40]}
{[%emt 00:00:53]} 16. Rb1 {[%clk 00:52:13]} {[%emt 00:00:24]} Bg7 {[%clk
00:26:32]} {[%emt 00:00:38]} 17. Nc7 {[%clk 00:52:32]} {[%emt 00:00:12]} Qb8
{[%clk 00:25:13]} {[%emt 00:01:48]} 18. Nxa8 {[%clk 00:52:15]} {[%emt
00:00:48]} Qxa8 {[%clk 00:25:13]} {[%emt 00:00:30]} 19. e5 {[%clk 00:50:50]}
{[%emt 00:01:55]} Qb8 {[%clk 00:14:32]} {[%emt 00:11:10]} 20. Bxf7+ {[%clk
00:45:30]} {[%emt 00:05:51]} Rxf7 {[%clk 00:10:55]} {[%emt 00:04:08]} 21. e6
{[%clk 00:45:50]} {[%emt 00:00:10]} Rxf3 {[%clk 00:11:02]} {[%emt 00:00:23]} 22.
exd7 {[%clk 00:44:27]} {[%emt 00:01:53]} Rf7 {[%clk 00:10:30]} {[%emt
00:01:00]} 23. Qd5 {[%clk 00:44:01]} {[%emt 00:00:38]} Qc7 {[%clk 00:08:13]}
{[%emt 00:03:03]} 24. Qxc6 {[%clk 00:38:40]} {[%emt 00:05:54]} Qd8 {[%clk
00:06:31]} {[%emt 00:02:11]} 25. Qc8 {[%clk 00:37:40]} {[%emt 00:01:31]} Rf8
{[%clk 00:05:45]} {[%emt 00:01:17]} 26. Qxd8 {[%clk 00:38:01]} {[%emt
00:00:09]} Rxd8 {[%clk 00:06:04]} {[%emt 00:00:10]} 27. Rxe7 {[%clk 00:38:20]}
{[%emt 00:00:12]} Kf8 {[%clk 00:06:05]} {[%emt 00:00:29]} 28. Rbe1 {[%clk
00:38:42]} {[%emt 00:00:08]} Be5 {[%clk 00:05:55]} {[%emt 00:00:39]} 29. Rxh7
{[%clk 00:38:34]} {[%emt 00:00:39]} Rb8 {[%clk 00:03:42]} {[%emt 00:02:42]} 30.
Rxe5 {[%clk 00:38:35]} 1-0